Workbook

Sheet Kvartalsvis salgsrapport
A2: KVARTALSVIS SALGSRAPPORT | J2: VIS FØRENDE | K2: 5 | L2: PRODUKTER
J4: VIS ALLE ANDRE | K4: NEJ | L4: PRODUKTER
B34: PRODUKT | C34: 1. KVARTAL | D34: 2. KVARTAL | E34: 3. KVARTAL | F34: 4. KVARTAL | G34: I ALT
B35: Rammer | C35: 4000 | D35: 4500 | E35: 5000 | F35: 5000 | G35: =SUM(Salg[[#This Row],[1. KVARTAL]]:Salg[[#This Row],[4. KVARTAL]]) -> 18500
B36: Skivebremser, for | C36: 294 | D36: 249.9 | E36: 323.4 | F36: 367.5 | G36: =SUM(Salg[[#This Row],[1. KVARTAL]]:Salg[[#This Row],[4. KVARTAL]]) -> 1234.8
B37: Bremseklodser, for | C37: 200 | D37: 170 | E37: 220 | F37: 250 | G37: =SUM(Salg[[#This Row],[1. KVARTAL]]:Salg[[#This Row],[4. KVARTAL]]) -> 840
B38: Skivebremser, bag | C38: 400 | D38: 340 | E38: 440 | F38: 500 | G38: =SUM(Salg[[#This Row],[1. KVARTAL]]:Salg[[#This Row],[4. KVARTAL]]) -> 1680
B39: Bremseklodser, bag | C39: 294 | D39: 249.9 | E39: 323.4 | F39: 367.5 | G39: =SUM(Salg[[#This Row],[1. KVARTAL]]:Salg[[#This Row],[4. KVARTAL]]) -> 1234.8
B40: Sadler | C40: 235 | D40: 199.75 | E40: 32 | F40: 293.75 | G40: =SUM(Salg[[#This Row],[1. KVARTAL]]:Salg[[#This Row],[4. KVARTAL]]) -> 760.5
B41: Forgafler | C41: 100 | D41: 85 | E41: 110 | F41: 125 | G41: =SUM(Salg[[#This Row],[1. KVARTAL]]:Salg[[#This Row],[4. KVARTAL]]) -> 420
B42: Bremsekabler | C42: 300 | D42: 255 | E42: 330 | F42: 375 | G42: =SUM(Salg[[#This Row],[1. KVARTAL]]:Salg[[#This Row],[4. KVARTAL]]) -> 1260
B43: Gearkabler | C43: 250 | D43: 212.5 | E43: 275 | F43: 312.5 | G43: =SUM(Salg[[#This Row],[1. KVARTAL]]:Salg[[#This Row],[4. KVARTAL]]) -> 1050
B44: Tandhjul, bag | C44: 400 | D44: 340 | E44: 440 | F44: 500 | G44: =SUM(Salg[[#This Row],[1. KVARTAL]]:Salg[[#This Row],[4. KVARTAL]]) -> 1680
B45: Tandhjul, for | C45: 200 | D45: 170 | E45: 220 | F45: 250 | G45: =SUM(Salg[[#This Row],[1. KVARTAL]]:Salg[[#This Row],[4. KVARTAL]]) -> 840
B46: Styr | C46: 1895 | D46: 1610.75 | E46: 3445 | F46: 3333 | G46: =SUM(Salg[[#This Row],[1. KVARTAL]]:Salg[[#This Row],[4. KVARTAL]]) -> 10283.75
B47: Bremsegreb | C47: 544 | D47: 462.4 | E47: 598.4 | F47: 680 | G47: =SUM(Salg[[#This Row],[1. KVARTAL]]:Salg[[#This Row],[4. KVARTAL]]) -> 2284.8
B48: Saddelpinde | C48: 200 | D48: 170 | E48: 220 | F48: 250 | G48: =SUM(Salg[[#This Row],[1. KVARTAL]]:Salg[[#This Row],[4. KVARTAL]]) -> 840
B49: Styrklamper | C49: 60 | D49: 51 | E49: 66 | F49: 75 | G49: =SUM(Salg[[#This Row],[1. KVARTAL]]:Salg[[#This Row],[4. KVARTAL]]) -> 252
B50: Sadeltasker | C50: 2413 | D50: 2051.05 | E50: 4000 | F50: 3016.25 | G50: =SUM(Salg[[#This Row],[1. KVARTAL]]:Salg[[#This Row],[4. KVARTAL]]) -> 11480.3
B51: Eger | C51: 233 | D51: 198.05 | E51: 256.3 | F51: 291.25 | G51: =SUM(Salg[[#This Row],[1. KVARTAL]]:Salg[[#This Row],[4. KVARTAL]]) -> 978.6
B52: Fælge | C52: 354 | D52: 300.9 | E52: 389.4 | F52: 442.5 | G52: =SUM(Salg[[#This Row],[1. KVARTAL]]:Salg[[#This Row],[4. KVARTAL]]) -> 1486.8
B53: Dæk | C53: 423 | D53: 359.55 | E53: 465.3 | F53: 528.75 | G53: =SUM(Salg[[#This Row],[1. KVARTAL]]:Salg[[#This Row],[4. KVARTAL]]) -> 1776.6
B54: Håndtag | C54: 2222 | D54: 1888.7 | E54: 2444.2 | F54: 2777.5 | G54: =SUM(Salg[[#This Row],[1. KVARTAL]]:Salg[[#This Row],[4. KVARTAL]]) -> 9332.4
B55: Styrbånd | C55: 1550.4 | D55: 1317.84 | E55: 1705.44 | F55: 1938 | G55: =SUM(Salg[[#This Row],[1. KVARTAL]]:Salg[[#This Row],[4. KVARTAL]]) -> 6511.68
B56: Polstring | C56: 30 | D56: 25.5 | E56: 33 | F56: 37.5 | G56: =SUM(Salg[[#This Row],[1. KVARTAL]]:Salg[[#This Row],[4. KVARTAL]]) -> 126
B57: Kæder | C57: 208 | D57: 176.8 | E57: 228.8 | F57: 260 | G57: =SUM(Salg[[#This Row],[1. KVARTAL]]:Salg[[#This Row],[4. KVARTAL]]) -> 873.6
B58: For-/bagskiftere | C58: 356 | D58: 302.6 | E58: 391.6 | F58: 445 | G58: =SUM(Salg[[#This Row],[1. KVARTAL]]:Salg[[#This Row],[4. KVARTAL]]) -> 1495.2
B59: Quick release-aksler | C59: 258 | D59: 219.3 | E59: 283.8 | F59: 322.5 | G59: =SUM(Salg[[#This Row],[1. KVARTAL]]:Salg[[#This Row],[4. KVARTAL]]) -> 1083.6
B60: Standardaksler | C60: 414 | D60: 351.9 | E60: 455.4 | F60: 517.5 | G60: =SUM(Salg[[#This Row],[1. KVARTAL]]:Salg[[#This Row],[4. KVARTAL]]) -> 1738.8
B61: Pedaler | C61: 369 | D61: 313.65 | E61: 405.9 | F61: 461.25 | G61: =SUM(Salg[[#This Row],[1. KVARTAL]]:Salg[[#This Row],[4. KVARTAL]]) -> 1549.8
B62: Kædeskærme | C62: 324 | D62: 275.4 | E62: 356.4 | F62: 405 | G62: =SUM(Salg[[#This Row],[1. KVARTAL]]:Salg[[#This Row],[4. KVARTAL]]) -> 1360.8
B63: Spejle | C63: 87 | D63: 73.95 | E63: 95.7 | F63: 108.75 | G63: =SUM(Salg[[#This Row],[1. KVARTAL]]:Salg[[#This Row],[4. KVARTAL]]) -> 365.4

Sheet beregninger (hidden)
A1: *** Dette ark bør forblive skjult ****
E4: Produkt | F4: 1. KVARTAL | G4: 2. KVARTAL | H4: 3. KVARTAL | I4: 4. KVARTAL | J4: I alt
B5: 1 | C5: =IF($B5>n,"",LARGE(Salg[I ALT],1)) -> 18500 | D5: =IF($B5>n,"",IF(C4=C5,MATCH(C5,OFFSET(Salg[I ALT],D4,),0)+D4,MATCH(C5,Salg[I ALT],0))) -> 1 | E5: =IF($B5>n,"",INDEX(Salg[PRODUKT],D5)) -> Rammer | F5: =IF($B5>n,"",INDEX(Salg[1. KVARTAL],$D5)) -> 4000 | G5: =IF($B5>n,"",INDEX(Salg[2. KVARTAL],$D5)) -> 4500 | H5: =IF($B5>n,"",INDEX(Salg[3. KVARTAL],$D5)) -> 5000 | I5: =IF($B5>n,"",INDEX(Salg[4. KVARTAL],$D5)) -> 5000 | J5: =IF($B5>n,"",SUM(F5:I5)) -> 18500
B6: 2 | C6: =IF($B6>n,"",LARGE(Salg[I ALT],2)) -> 11480.3 | D6: =IF($B6>n,"",IF(C5=C6,MATCH(C6,OFFSET(Salg[I ALT],D5,),0)+D5,MATCH(C6,Salg[I ALT],0))) -> 16 | E6: =IF($B6>n,"",INDEX(Salg[PRODUKT],D6)) -> Sadeltasker | F6: =IF($B6>n,"",INDEX(Salg[1. KVARTAL],$D6)) -> 2413 | G6: =IF($B6>n,"",INDEX(Salg[2. KVARTAL],$D6)) -> 2051.05 | H6: =IF($B6>n,"",INDEX(Salg[3. KVARTAL],$D6)) -> 4000 | I6: =IF($B6>n,"",INDEX(Salg[4. KVARTAL],$D6)) -> 3016.25 | J6: 11480.3
B7: 3 | C7: =IF($B7>n,"",LARGE(Salg[I ALT],3)) -> 10283.75 | D7: =IF($B7>n,"",IF(C6=C7,MATCH(C7,OFFSET(Salg[I ALT],D6,),0)+D6,MATCH(C7,Salg[I ALT],0))) -> 12 | E7: =IF($B7>n,"",INDEX(Salg[PRODUKT],D7)) -> Styr | F7: =IF($B7>n,"",INDEX(Salg[1. KVARTAL],$D7)) -> 1895 | G7: =IF($B7>n,"",INDEX(Salg[2. KVARTAL],$D7)) -> 1610.75 | H7: =IF($B7>n,"",INDEX(Salg[3. KVARTAL],$D7)) -> 3445 | I7: =IF($B7>n,"",INDEX(Salg[4. KVARTAL],$D7)) -> 3333 | J7: 10283.75
B8: 4 | C8: =IF($B8>n,"",LARGE(Salg[I ALT],4)) -> 9332.4 | D8: =IF($B8>n,"",IF(C7=C8,MATCH(C8,OFFSET(Salg[I ALT],D7,),0)+D7,MATCH(C8,Salg[I ALT],0))) -> 20 | E8: =IF($B8>n,"",INDEX(Salg[PRODUKT],D8)) -> Håndtag | F8: =IF($B8>n,"",INDEX(Salg[1. KVARTAL],$D8)) -> 2222 | G8: =IF($B8>n,"",INDEX(Salg[2. KVARTAL],$D8)) -> 1888.7 | H8: =IF($B8>n,"",INDEX(Salg[3. KVARTAL],$D8)) -> 2444.2 | I8: =IF($B8>n,"",INDEX(Salg[4. KVARTAL],$D8)) -> 2777.5 | J8: 9332.4
B9: 5 | C9: =IF($B9>n,"",LARGE(Salg[I ALT],5)) -> 6511.68 | D9: =IF($B9>n,"",IF(C8=C9,MATCH(C9,OFFSET(Salg[I ALT],D8,),0)+D8,MATCH(C9,Salg[I ALT],0))) -> 21 | E9: =IF($B9>n,"",INDEX(Salg[PRODUKT],D9)) -> Styrbånd | F9: =IF($B9>n,"",INDEX(Salg[1. KVARTAL],$D9)) -> 1550.4 | G9: =IF($B9>n,"",INDEX(Salg[2. KVARTAL],$D9)) -> 1317.84 | H9: =IF($B9>n,"",INDEX(Salg[3. KVARTAL],$D9)) -> 1705.44 | I9: =IF($B9>n,"",INDEX(Salg[4. KVARTAL],$D9)) -> 1938 | J9: 6511.68
B10: 6 | C10: =IF($B10>n,"",LARGE(Salg[I ALT],6)) ->  | D10: =IF($B10>n,"",IF(C9=C10,MATCH(C10,OFFSET(Salg[I ALT],D9,),0)+D9,MATCH(C10,Salg[I ALT],0))) ->  | E10: =IF($B10>n,"",INDEX(Salg[PRODUKT],D10)) ->  | F10: =IF($B10>n,"",INDEX(Salg[1. KVARTAL],$D10)) ->  | G10: =IF($B10>n,"",INDEX(Salg[2. KVARTAL],$D10)) ->  | H10: =IF($B10>n,"",INDEX(Salg[3. KVARTAL],$D10)) ->  | I10: =IF($B10>n,"",INDEX(Salg[4. KVARTAL],$D10)) -> 
B11: 7 | C11: =IF($B11>n,"",LARGE(Salg[I ALT],7)) ->  | D11: =IF($B11>n,"",IF(C10=C11,MATCH(C11,OFFSET(Salg[I ALT],D10,),0)+D10,MATCH(C11,Salg[I ALT],0))) ->  | E11: =IF($B11>n,"",INDEX(Salg[PRODUKT],D11)) ->  | F11: =IF($B11>n,"",INDEX(Salg[1. KVARTAL],$D11)) ->  | G11: =IF($B11>n,"",INDEX(Salg[2. KVARTAL],$D11)) ->  | H11: =IF($B11>n,"",INDEX(Salg[3. KVARTAL],$D11)) ->  | I11: =IF($B11>n,"",INDEX(Salg[4. KVARTAL],$D11)) -> 
B12: 8 | C12: =IF($B12>n,"",LARGE(Salg[I ALT],8)) ->  | D12: =IF($B12>n,"",IF(C11=C12,MATCH(C12,OFFSET(Salg[I ALT],D11,),0)+D11,MATCH(C12,Salg[I ALT],0))) ->  | E12: =IF($B12>n,"",INDEX(Salg[PRODUKT],D12)) ->  | F12: =IF($B12>n,"",INDEX(Salg[1. KVARTAL],$D12)) ->  | G12: =IF($B12>n,"",INDEX(Salg[2. KVARTAL],$D12)) ->  | H12: =IF($B12>n,"",INDEX(Salg[3. KVARTAL],$D12)) ->  | I12: =IF($B12>n,"",INDEX(Salg[4. KVARTAL],$D12)) -> 
B13: 9 | C13: =IF($B13>n,"",LARGE(Salg[I ALT],9)) ->  | D13: =IF($B13>n,"",IF(C12=C13,MATCH(C13,OFFSET(Salg[I ALT],D12,),0)+D12,MATCH(C13,Salg[I ALT],0))) ->  | E13: =IF($B13>n,"",INDEX(Salg[PRODUKT],D13)) ->  | F13: =IF($B13>n,"",INDEX(Salg[1. KVARTAL],$D13)) ->  | G13: =IF($B13>n,"",INDEX(Salg[2. KVARTAL],$D13)) ->  | H13: =IF($B13>n,"",INDEX(Salg[3. KVARTAL],$D13)) ->  | I13: =IF($B13>n,"",INDEX(Salg[4. KVARTAL],$D13)) -> 
B14: 10 | C14: =IF($B14>n,"",LARGE(Salg[I ALT],10)) ->  | D14: =IF($B14>n,"",IF(C13=C14,MATCH(C14,OFFSET(Salg[I ALT],D13,),0)+D13,MATCH(C14,Salg[I ALT],0))) ->  | E14: =IF($B14>n,"",INDEX(Salg[PRODUKT],D14)) ->  | F14: =IF($B14>n,"",INDEX(Salg[1. KVARTAL],$D14)) ->  | G14: =IF($B14>n,"",INDEX(Salg[2. KVARTAL],$D14)) ->  | H14: =IF($B14>n,"",INDEX(Salg[3. KVARTAL],$D14)) ->  | I14: =IF($B14>n,"",INDEX(Salg[4. KVARTAL],$D14)) -> 
E15: ="" -> 
B16: =InkluderAndet="ja" -> FALSE | E16: Andet | F16: =SUM(Salg[1. KVARTAL]) - SUM(F5:F14) -> 6533 | G16: =SUM(Salg[2. KVARTAL]) - SUM(G5:G14) -> 5553.05 | H16: =SUM(Salg[3. KVARTAL]) - SUM(H5:H14) -> 6959.8 | I16: =SUM(Salg[4. KVARTAL]) - SUM(I5:I14) -> 8166.25 | J16: =SUM(Salg[I ALT]) - SUM(J5:J14) -> 27212.1
E18: I ALT | F18: =SUM(Salg[1. KVARTAL]) -> 18613.4 | G18: =SUM(Salg[2. KVARTAL]) -> 16921.39 | H18: =SUM(Salg[3. KVARTAL]) -> 23554.44 | I18: =SUM(Salg[4. KVARTAL]) -> 24231 | J18: =SUM(Salg[I ALT]) -> 83320.23
B22: ="TOTAL OG TOP " & n & " AF PRODUKTER" -> TOTAL OG TOP 5 AF PRODUKTER
